[Event "*** Titled Tuesday Blitz"]
[Site "Chess.com"]
[Date "2020.12.29"]
[Round "6"]
[White "Alexandr_Kholin"]
[Black "Chamal_Gedgafov"]
[Result "1-0"]
[WhiteElo "2549"]
[BlackElo "2227"]
[TimeControl "180+1"]
[EndTime "11:06:10 PST"]
[Termination "Alexandr_Kholin won on time"]

1. d4 {[%clk 0:03:00.9]} 1... d5 {[%clk 0:02:51.5]} 2. c4 {[%clk 0:02:59.4]}
2... c6 {[%clk 0:02:51.2]} 3. Nf3 {[%clk 0:02:59]} 3... e6 {[%clk 0:02:51]} 4.
e3 {[%clk 0:02:59.1]} 4... f5 {[%clk 0:02:49.8]} 5. Nc3 {[%clk 0:02:58]} 5...
Nf6 {[%clk 0:02:49.5]} 6. g3 {[%clk 0:02:58.3]} 6... Bd6 {[%clk 0:02:48.7]} 7.
Bg2 {[%clk 0:02:58.6]} 7... O-O {[%clk 0:02:47.9]} 8. O-O {[%clk 0:02:58]} 8...
Nbd7 {[%clk 0:02:47.4]} 9. b3 {[%clk 0:02:58.3]} 9... Ne4 {[%clk 0:02:44.9]} 10.
Ne2 {[%clk 0:02:57.6]} 10... Qf6 {[%clk 0:02:43.1]} 11. Bb2 {[%clk 0:02:52.6]}
11... g5 {[%clk 0:02:42]} 12. Nc1 {[%clk 0:02:47.9]} 12... g4 {[%clk 0:02:38.8]}
13. Nd2 {[%clk 0:02:47.6]} 13... h5 {[%clk 0:02:35.3]} 14. Nd3 {[%clk
0:02:43.8]} 14... Qh8 {[%clk 0:02:31.2]} 15. Nf4 {[%clk 0:02:38.9]} 15... Ndf6
{[%clk 0:02:29.5]} 16. Ng6 {[%clk 0:02:34.5]} 16... Qh6 {[%clk 0:02:26.8]} 17.
Nxf8 {[%clk 0:02:33.9]} 17... Kxf8 {[%clk 0:02:20.4]} 18. Nxe4 {[%clk
0:02:31.1]} 18... Nxe4 {[%clk 0:02:18.8]} 19. a4 {[%clk 0:02:12]} 19... Kg8
{[%clk 0:02:10.9]} 20. Ba3 {[%clk 0:02:12]} 20... Bc7 {[%clk 0:02:10.4]} 21. Rc1
{[%clk 0:02:10.3]} 21... h4 {[%clk 0:02:08.5]} 22. b4 {[%clk 0:02:00.7]} 22...
Bd7 {[%clk 0:02:01.9]} 23. Bxe4 {[%clk 0:01:41.7]} 23... dxe4 {[%clk 0:01:36.3]}
24. Qd2 {[%clk 0:01:12.8]} 24... Kf7 {[%clk 0:01:34.8]} 25. d5 {[%clk
0:01:07.5]} 25... Rh8 {[%clk 0:01:33.5]} 26. d6 {[%clk 0:01:06.8]} 26... Bd8
{[%clk 0:01:30.8]} 27. Bb2 {[%clk 0:01:05.3]} 27... Rh7 {[%clk 0:01:29.4]} 28.
Be5 {[%clk 0:01:04.6]} 28... hxg3 {[%clk 0:01:25.9]} 29. fxg3 {[%clk 0:01:02.2]}
29... Bf6 {[%clk 0:01:20.7]} 30. Bxf6 {[%clk 0:01:01.4]} 30... Qxf6 {[%clk
0:01:18.6]} 31. Rf2 {[%clk 0:00:55.7]} 31... e5 {[%clk 0:01:15.4]} 32. c5 {[%clk
0:00:55.2]} 32... Ke8 {[%clk 0:01:05.5]} 33. b5 {[%clk 0:00:50.6]} 33... cxb5
{[%clk 0:01:00]} 34. axb5 {[%clk 0:00:47.2]} 34... Bxb5 {[%clk 0:00:59.8]} 35.
Qd5 {[%clk 0:00:46.1]} 35... Rg7 {[%clk 0:00:22.1]} 36. Qxe4 {[%clk 0:00:42.7]}
36... Rf7 {[%clk 0:00:16.4]} 37. d7+ {[%clk 0:00:22.8]} 37... Bxd7 {[%clk
0:00:13.3]} 38. Qxb7 {[%clk 0:00:22.4]} 1-0

[Event "*** Titled Tuesday Blitz"]
[Site "Chess.com"]
[Date "2020.12.29"]
[Round "6"]
[White "rynos0411"]
[Black "kleopl"]
[Result "0-1"]
[WhiteElo "2320"]
[BlackElo "2463"]
[TimeControl "180+1"]
[EndTime "11:06:10 PST"]
[Termination "kleopl won by resignation"]

1. Nf3 {[%clk 0:02:57.6]} 1... c5 {[%clk 0:02:58.6]} 2. c4 {[%clk 0:02:57.7]}
2... g6 {[%clk 0:02:57.9]} 3. Nc3 {[%clk 0:02:54.9]} 3... Bg7 {[%clk 0:02:57.6]}
4. e3 {[%clk 0:02:55.8]} 4... Nf6 {[%clk 0:02:54.9]} 5. d4 {[%clk 0:02:55.7]}
5... cxd4 {[%clk 0:02:55.3]} 6. exd4 {[%clk 0:02:56.6]} 6... d5 {[%clk
0:02:55.5]} 7. Be3 {[%clk 0:02:55.2]} 7... O-O {[%clk 0:02:55.1]} 8. h3 {[%clk
0:02:54.6]} 8... Nc6 {[%clk 0:02:55.2]} 9. Be2 {[%clk 0:02:54.4]} 9... dxc4
{[%clk 0:02:55.1]} 10. Bxc4 {[%clk 0:02:55.3]} 10... Bf5 {[%clk 0:02:52.8]} 11.
O-O {[%clk 0:02:51.1]} 11... Ne4 {[%clk 0:02:52.9]} 12. Rc1 {[%clk 0:02:47.9]}
12... Nxc3 {[%clk 0:02:52]} 13. bxc3 {[%clk 0:02:48.8]} 13... Na5 {[%clk
0:02:49.5]} 14. Bd3 {[%clk 0:02:44.9]} 14... Bxd3 {[%clk 0:02:47.2]} 15. Qxd3
{[%clk 0:02:45.8]} 15... Rc8 {[%clk 0:02:46.1]} 16. c4 {[%clk 0:02:46.2]} 16...
e6 {[%clk 0:02:41.6]} 17. h4 {[%clk 0:02:35.7]} 17... h5 {[%clk 0:02:39.2]} 18.
Rfd1 {[%clk 0:02:35.1]} 18... b6 {[%clk 0:02:38.7]} 19. Ng5 {[%clk 0:02:11.2]}
19... Nc6 {[%clk 0:02:30.7]} 20. g3 {[%clk 0:01:58.7]} 20... Qd6 {[%clk
0:02:25.7]} 21. Ne4 {[%clk 0:01:56]} 21... Qd7 {[%clk 0:02:20.8]} 22. Bg5 {[%clk
0:01:33.1]} 22... Qxd4 {[%clk 0:02:12]} 23. Qf3 {[%clk 0:01:19.3]} 23... Ne5
{[%clk 0:01:47.8]} 24. Nf6+ {[%clk 0:00:53.7]} 24... Kh8 {[%clk 0:01:36.3]} 25.
Qe2 {[%clk 0:00:46.5]} 25... Qc5 {[%clk 0:01:32.2]} 26. Ne4 {[%clk 0:00:21.7]}
26... Qa3 {[%clk 0:01:27.4]} 27. Bf6 {[%clk 0:00:15.9]} 27... Ng4 {[%clk
0:01:15.5]} 28. Bxg7+ {[%clk 0:00:14.8]} 28... Kxg7 {[%clk 0:01:16.4]} 29. Rc3
{[%clk 0:00:09.4]} 29... Qe7 {[%clk 0:01:13.8]} 30. Rf3 {[%clk 0:00:08.5]} 30...
Rfd8 {[%clk 0:01:10.9]} 31. Rxd8 {[%clk 0:00:07.4]} 31... Rxd8 {[%clk
0:01:10.6]} 32. Ng5 {[%clk 0:00:07.9]} 32... Rf8 {[%clk 0:01:03.7]} 33. Qe4
{[%clk 0:00:07]} 33... e5 {[%clk 0:00:55.4]} 34. Kg2 {[%clk 0:00:05.7]} 34... f6
{[%clk 0:00:50.6]} 35. Qc6 {[%clk 0:00:06.1]} 35... fxg5 {[%clk 0:00:46.7]} 36.
Rxf8 {[%clk 0:00:03.8]} 36... Qxf8 {[%clk 0:00:46.8]} 37. f3 {[%clk 0:00:04]}
37... Ne3+ {[%clk 0:00:38.1]} 38. Kf2 {[%clk 0:00:03.8]} 38... gxh4 {[%clk
0:00:31.6]} 39. Kxe3 {[%clk 0:00:03.1]} 39... hxg3 {[%clk 0:00:32]} 40. Qc7+
{[%clk 0:00:02.4]} 40... Kh6 {[%clk 0:00:27.6]} 41. Qxe5 {[%clk 0:00:02.9]}
41... Qc5+ {[%clk 0:00:27.7]} 42. Qxc5 {[%clk 0:00:02.6]} 42... bxc5 {[%clk
0:00:28.6]} 43. f4 {[%clk 0:00:02.1]} 43... h4 {[%clk 0:00:28.8]} 44. Kf3 {[%clk
0:00:02.6]} 44... g5 {[%clk 0:00:28.4]} 45. f5 {[%clk 0:00:03.1]} 45... Kg7
{[%clk 0:00:28.4]} 0-1

[Event "*** Titled Tuesday Blitz"]
[Site "Chess.com"]
[Date "2020.12.29"]
[Round "6"]
[White "arctic_t00"]
[Black "dretch"]
[Result "0-1"]
[WhiteElo "2627"]
[BlackElo "2846"]
[TimeControl "180+1"]
[EndTime "11:06:12 PST"]
[Termination "dretch won by resignation"]

1. d4 {[%clk 0:03:00.9]} 1... d5 {[%clk 0:02:59.9]} 2. c4 {[%clk 0:03:01.2]}
2... c6 {[%clk 0:02:59.9]} 3. Nf3 {[%clk 0:03:00.5]} 3... Nf6 {[%clk 0:02:59.9]}
4. e3 {[%clk 0:02:59]} 4... Bf5 {[%clk 0:02:59.1]} 5. Nc3 {[%clk 0:02:57.6]}
5... e6 {[%clk 0:02:59.4]} 6. Bd3 {[%clk 0:02:50]} 6... Bxd3 {[%clk 0:02:57.7]}
7. Qxd3 {[%clk 0:02:50.9]} 7... Nbd7 {[%clk 0:02:57.6]} 8. O-O {[%clk
0:02:50.7]} 8... Bb4 {[%clk 0:02:56.7]} 9. Ne2 {[%clk 0:02:46.7]} 9... O-O
{[%clk 0:02:54]} 10. a3 {[%clk 0:02:46.2]} 10... Bd6 {[%clk 0:02:53.2]} 11. Nc3
{[%clk 0:02:40.7]} 11... dxc4 {[%clk 0:02:46.7]} 12. Qxc4 {[%clk 0:02:40.5]}
12... e5 {[%clk 0:02:47.3]} 13. e4 {[%clk 0:01:40.6]} 13... Re8 {[%clk
0:02:43.6]} 14. Bg5 {[%clk 0:01:34.2]} 14... Qc7 {[%clk 0:02:31.5]} 15. dxe5
{[%clk 0:01:15.5]} 15... Nxe5 {[%clk 0:02:24.8]} 16. Nxe5 {[%clk 0:01:07]} 16...
Bxe5 {[%clk 0:02:24.8]} 17. Bxf6 {[%clk 0:01:05.7]} 17... Bxf6 {[%clk
0:02:24.9]} 18. Nd5 {[%clk 0:00:55.5]} 18... Qd6 {[%clk 0:02:24.8]} 19. Nxf6+
{[%clk 0:00:54.6]} 19... Qxf6 {[%clk 0:02:25.7]} 20. b4 {[%clk 0:00:51.2]} 20...
Rad8 {[%clk 0:02:19]} 21. Rad1 {[%clk 0:00:50.5]} 21... Qb2 {[%clk 0:02:14.1]}
22. Rd3 {[%clk 0:00:43.8]} 22... h6 {[%clk 0:02:03.2]} 23. Rfd1 {[%clk
0:00:42.3]} 23... Rxd3 {[%clk 0:01:53.4]} 24. Qxd3 {[%clk 0:00:43.2]} 24... Qe5
{[%clk 0:01:42.2]} 25. f3 {[%clk 0:00:42.3]} 25... a5 {[%clk 0:01:34.2]} 26. Qd4
{[%clk 0:00:38.8]} 26... Qb5 {[%clk 0:01:23]} 27. h3 {[%clk 0:00:32]} 27... Qa4
{[%clk 0:01:16.8]} 28. Rd3 {[%clk 0:00:29.6]} 28... axb4 {[%clk 0:01:14.4]} 29.
axb4 {[%clk 0:00:30.5]} 29... Ra8 {[%clk 0:01:08.9]} 30. Kh2 {[%clk 0:00:30.1]}
30... Qb5 {[%clk 0:01:04.3]} 31. e5 {[%clk 0:00:18.5]} 31... Ra4 {[%clk
0:00:54.6]} 32. Qd8+ {[%clk 0:00:16]} 32... Kh7 {[%clk 0:00:54.3]} 33. Re3
{[%clk 0:00:16.5]} 33... Qxb4 {[%clk 0:00:53.1]} 34. Qd3+ {[%clk 0:00:15.6]}
34... Kg8 {[%clk 0:00:49.5]} 35. Qd8+ {[%clk 0:00:14.9]} 35... Qf8 {[%clk
0:00:49.3]} 36. Qd3 {[%clk 0:00:15.8]} 36... Qe7 {[%clk 0:00:47]} 37. Qb3 {[%clk
0:00:13.1]} 37... Ra5 {[%clk 0:00:44.1]} 38. f4 {[%clk 0:00:13.3]} 38... Rb5
{[%clk 0:00:43.4]} 39. Qd3 {[%clk 0:00:12.6]} 39... Rd5 {[%clk 0:00:42]} 40. Qf5
{[%clk 0:00:12.7]} 40... Qe6 {[%clk 0:00:39.8]} 41. Qh5 {[%clk 0:00:13.3]} 41...
b5 {[%clk 0:00:32.4]} 42. f5 {[%clk 0:00:12.4]} 42... Qe7 {[%clk 0:00:31.5]} 43.
f6 {[%clk 0:00:12]} 43... Qxf6 {[%clk 0:00:31]} 44. Qe2 {[%clk 0:00:06.3]} 44...
Qf4+ {[%clk 0:00:29.7]} 45. g3 {[%clk 0:00:06.7]} 45... Qb4 {[%clk 0:00:29]} 46.
e6 {[%clk 0:00:04.3]} 46... fxe6 {[%clk 0:00:27]} 47. Rxe6 {[%clk 0:00:04.3]}
47... Rd2 {[%clk 0:00:26.4]} 0-1

[Event "*** Titled Tuesday Blitz"]
[Site "Chess.com"]
[Date "2020.12.29"]
[Round "6"]
[White "comsac"]
[Black "SamuelGhimpu2003"]
[Result "0-1"]
[WhiteElo "2412"]
[BlackElo "2610"]
[TimeControl "180+1"]
[EndTime "11:06:13 PST"]
[Termination "SamuelGhimpu2003 won on time"]

1. e4 {[%clk 0:03:00.9]} 1... e6 {[%clk 0:02:56.2]} 2. d4 {[%clk 0:02:58.9]}
2... d5 {[%clk 0:02:57.1]} 3. exd5 {[%clk 0:02:59.8]} 3... exd5 {[%clk 0:02:58]}
4. Nf3 {[%clk 0:03:00.5]} 4... Nf6 {[%clk 0:02:58.5]} 5. Bd3 {[%clk 0:03:01]}
5... c5 {[%clk 0:02:59]} 6. c3 {[%clk 0:02:59.1]} 6... c4 {[%clk 0:02:57.3]} 7.
Be2 {[%clk 0:02:57.3]} 7... Bd6 {[%clk 0:02:57]} 8. O-O {[%clk 0:02:57.5]} 8...
O-O {[%clk 0:02:56.8]} 9. b3 {[%clk 0:02:54.4]} 9... cxb3 {[%clk 0:02:56.2]} 10.
axb3 {[%clk 0:02:55.3]} 10... Nc6 {[%clk 0:02:55.7]} 11. Bg5 {[%clk 0:02:53.4]}
11... Re8 {[%clk 0:02:54]} 12. Nbd2 {[%clk 0:02:51.8]} 12... h6 {[%clk
0:02:50.4]} 13. Bh4 {[%clk 0:02:50.9]} 13... a6 {[%clk 0:02:45.5]} 14. Bd3
{[%clk 0:02:49.9]} 14... Bg4 {[%clk 0:02:24.9]} 15. Re1 {[%clk 0:02:49.4]} 15...
Rxe1+ {[%clk 0:02:19.5]} 16. Qxe1 {[%clk 0:02:50.3]} 16... Rc8 {[%clk
0:02:19.2]} 17. h3 {[%clk 0:02:27.3]} 17... Be6 {[%clk 0:01:54.2]} 18. Ne5
{[%clk 0:02:17.6]} 18... Be7 {[%clk 0:01:41.1]} 19. Nxc6 {[%clk 0:02:03.4]}
19... Rxc6 {[%clk 0:01:40.3]} 20. Nf3 {[%clk 0:01:57.2]} 20... Qc7 {[%clk
0:01:30.9]} 21. Bg3 {[%clk 0:01:21.8]} 21... Qc8 {[%clk 0:01:20.8]} 22. c4
{[%clk 0:01:19.2]} 22... Rb6 {[%clk 0:00:46.7]} 23. c5 {[%clk 0:00:34]} 23...
Rxb3 {[%clk 0:00:39.5]} 24. Bc2 {[%clk 0:00:34.4]} 24... Rb2 {[%clk 0:00:16.3]}
25. Qc3 {[%clk 0:00:32.7]} 25... Rxc2 {[%clk 0:00:16.8]} 26. Qxc2 {[%clk
0:00:33.6]} 26... Ne4 {[%clk 0:00:17.5]} 27. Bh2 {[%clk 0:00:22.7]} 27... Bf6
{[%clk 0:00:08.4]} 28. Rb1 {[%clk 0:00:21.7]} 28... Bd7 {[%clk 0:00:08.5]} 29.
Ne5 {[%clk 0:00:16.6]} 29... Bxe5 {[%clk 0:00:08]} 30. Bxe5 {[%clk 0:00:16.2]}
30... f6 {[%clk 0:00:08.6]} 31. Bh2 {[%clk 0:00:14.9]} 31... Bc6 {[%clk
0:00:08.9]} 32. f3 {[%clk 0:00:14.2]} 32... Ng5 {[%clk 0:00:09.3]} 33. Qg6
{[%clk 0:00:10]} 33... Bb5 {[%clk 0:00:07.4]} 34. h4 {[%clk 0:00:07.6]} 34...
Nf7 {[%clk 0:00:07.4]} 35. Re1 {[%clk 0:00:06.6]} 35... a5 {[%clk 0:00:07.8]}
36. Re7 {[%clk 0:00:04.1]} 36... Be8 {[%clk 0:00:08.4]} 0-1

[Event "*** Titled Tuesday Blitz"]
[Site "Chess.com"]
[Date "2020.12.29"]
[Round "6"]
[White "ckgchess"]
[Black "Geller_Jakov"]
[Result "1-0"]
[WhiteElo "2776"]
[BlackElo "2606"]
[TimeControl "180+1"]
[EndTime "11:06:15 PST"]
[Termination "ckgchess won by resignation"]

1. e4 {[%clk 0:03:00.9]} 1... c5 {[%clk 0:02:59.5]} 2. c3 {[%clk 0:03:00.4]}
2... Nf6 {[%clk 0:02:58.5]} 3. e5 {[%clk 0:03:00.7]} 3... Nd5 {[%clk 0:02:58.7]}
4. d4 {[%clk 0:03:01.6]} 4... cxd4 {[%clk 0:02:58.1]} 5. Qxd4 {[%clk 0:03:02.5]}
5... e6 {[%clk 0:02:56.3]} 6. Nf3 {[%clk 0:03:02.6]} 6... Nc6 {[%clk 0:02:55.8]}
7. Qe4 {[%clk 0:03:02.7]} 7... f5 {[%clk 0:02:53.4]} 8. Qe2 {[%clk 0:03:02.7]}
8... a6 {[%clk 0:02:50.1]} 9. g3 {[%clk 0:03:01.5]} 9... b5 {[%clk 0:02:50.2]}
10. Bg2 {[%clk 0:03:01.9]} 10... Bb7 {[%clk 0:02:50.5]} 11. O-O {[%clk 0:03:02]}
11... Be7 {[%clk 0:02:49.9]} 12. Nbd2 {[%clk 0:02:42.2]} 12... O-O {[%clk
0:02:49.4]} 13. Nb3 {[%clk 0:02:35.4]} 13... Rc8 {[%clk 0:02:46]} 14. Rd1 {[%clk
0:02:31]} 14... Qc7 {[%clk 0:02:39.6]} 15. a4 {[%clk 0:02:09]} 15... bxa4 {[%clk
0:02:14.5]} 16. Rxa4 {[%clk 0:02:09.9]} 16... Qb6 {[%clk 0:01:57.8]} 17. Nbd4
{[%clk 0:02:07.4]} 17... Nxd4 {[%clk 0:01:56]} 18. Nxd4 {[%clk 0:02:05.3]} 18...
f4 {[%clk 0:01:37.7]} 19. Be4 {[%clk 0:01:55.3]} 19... g6 {[%clk 0:01:26.3]} 20.
Ra1 {[%clk 0:01:04]} 20... Bc5 {[%clk 0:00:44.5]} 21. Nf3 {[%clk 0:01:04.1]}
21... fxg3 {[%clk 0:00:43.2]} 22. hxg3 {[%clk 0:01:04]} 22... Rf7 {[%clk
0:00:35]} 23. c4 {[%clk 0:00:44.1]} 23... Nb4 {[%clk 0:00:30]} 24. Bxb7 {[%clk
0:00:42.2]} 24... Qxb7 {[%clk 0:00:30.1]} 25. Bf4 {[%clk 0:00:42.7]} 25... Rcf8
{[%clk 0:00:26.4]} 26. Kg2 {[%clk 0:00:22.1]} 26... Nc6 {[%clk 0:00:20.2]} 27.
Qe4 {[%clk 0:00:20.9]} 27... Qxb2 {[%clk 0:00:12.4]} 28. Rf1 {[%clk 0:00:21.3]}
28... Nb4 {[%clk 0:00:10.6]} 29. Rab1 {[%clk 0:00:21.5]} 29... Qc2 {[%clk
0:00:10.7]} 30. Qxc2 {[%clk 0:00:19.7]} 30... Nxc2 {[%clk 0:00:11.6]} 31. Ng5
{[%clk 0:00:20.6]} 31... Rf5 {[%clk 0:00:11.2]} 32. Ne4 {[%clk 0:00:20.8]} 32...
Bd4 {[%clk 0:00:10.8]} 33. Nf6+ {[%clk 0:00:20.5]} 33... Kg7 {[%clk 0:00:10.4]}
34. Rfd1 {[%clk 0:00:19.7]} 34... Bxe5 {[%clk 0:00:10.2]} 35. Bxe5 {[%clk
0:00:20.3]} 35... Rxe5 {[%clk 0:00:06.7]} 36. Nxd7 {[%clk 0:00:20.9]} 36... Rff5
{[%clk 0:00:06.3]} 37. Nxe5 {[%clk 0:00:20.7]} 37... Rxe5 {[%clk 0:00:07.2]} 38.
Rd2 {[%clk 0:00:17.7]} 38... Na3 {[%clk 0:00:07]} 39. Rc1 {[%clk 0:00:17.2]}
39... Re4 {[%clk 0:00:06.3]} 40. c5 {[%clk 0:00:16.4]} 40... Nb5 {[%clk
0:00:06.7]} 41. c6 {[%clk 0:00:14]} 1-0

[Event "*** Titled Tuesday Blitz"]
[Site "Chess.com"]
[Date "2020.12.29"]
[Round "6"]
[White "Leo_C"]
[Black "Nadtkins"]
[Result "1-0"]
[WhiteElo "2374"]
[BlackElo "2517"]
[TimeControl "180+1"]
[EndTime "11:06:16 PST"]
[Termination "Leo_C won on time"]

1. d4 {[%clk 0:03:00.9]} 1... Nf6 {[%clk 0:02:59.1]} 2. c4 {[%clk 0:02:59.7]}
2... c5 {[%clk 0:02:59.6]} 3. d5 {[%clk 0:02:59.8]} 3... b5 {[%clk 0:03:00.2]}
4. cxb5 {[%clk 0:03:00.2]} 4... a6 {[%clk 0:03:00.7]} 5. e3 {[%clk 0:03:00.8]}
5... e6 {[%clk 0:02:54.7]} 6. Nc3 {[%clk 0:02:58]} 6... Bb7 {[%clk 0:02:44.8]}
7. dxe6 {[%clk 0:02:36.5]} 7... fxe6 {[%clk 0:02:44.3]} 8. Nf3 {[%clk
0:02:36.4]} 8... d5 {[%clk 0:02:25.4]} 9. b3 {[%clk 0:02:19.9]} 9... Bd6 {[%clk
0:02:22.9]} 10. Bb2 {[%clk 0:02:19]} 10... O-O {[%clk 0:02:23]} 11. Be2 {[%clk
0:02:17]} 11... Nbd7 {[%clk 0:02:12.1]} 12. O-O {[%clk 0:02:13]} 12... Qe8
{[%clk 0:01:58.8]} 13. a4 {[%clk 0:02:07.6]} 13... Qh5 {[%clk 0:01:54.7]} 14. h3
{[%clk 0:02:04.1]} 14... Qg6 {[%clk 0:01:51.9]} 15. Qb1 {[%clk 0:01:56.4]} 15...
Qh6 {[%clk 0:01:37.3]} 16. Qd1 {[%clk 0:01:48.5]} 16... Ne5 {[%clk 0:01:08.1]}
17. bxa6 {[%clk 0:01:35.4]} 17... Nxf3+ {[%clk 0:01:02.9]} 18. Bxf3 {[%clk
0:01:29.9]} 18... Bxa6 {[%clk 0:01:03.1]} 19. Nb5 {[%clk 0:01:25.6]} 19... Be7
{[%clk 0:00:33.3]} 20. Re1 {[%clk 0:01:22.3]} 20... Rac8 {[%clk 0:00:27.2]} 21.
Qd2 {[%clk 0:01:16.5]} 21... Bb7 {[%clk 0:00:25.7]} 22. Qa5 {[%clk 0:01:09.5]}
22... Bc6 {[%clk 0:00:19.3]} 23. Be5 {[%clk 0:00:49.6]} 23... Nd7 {[%clk
0:00:19]} 24. Bf4 {[%clk 0:00:48.3]} 24... Qg6 {[%clk 0:00:17.6]} 25. Na7 {[%clk
0:00:39.7]} 25... Ra8 {[%clk 0:00:15.8]} 26. Qc7 {[%clk 0:00:39.4]} 26... Rxa7
{[%clk 0:00:14.1]} 27. Qxa7 {[%clk 0:00:38.8]} 27... e5 {[%clk 0:00:14.6]} 28.
Bh2 {[%clk 0:00:32.9]} 28... Rxf3 {[%clk 0:00:12.8]} 29. Bxe5 {[%clk 0:00:26.4]}
29... Rf8 {[%clk 0:00:09.7]} 30. Qc7 {[%clk 0:00:22.6]} 30... d4 {[%clk
0:00:08.6]} 31. Bg3 {[%clk 0:00:22.4]} 31... dxe3 {[%clk 0:00:07.4]} 32. Rxe3
{[%clk 0:00:20.9]} 32... Bd8 {[%clk 0:00:06.1]} 33. Qa7 {[%clk 0:00:16.8]} 33...
Bb6 {[%clk 0:00:04.8]} 34. Qa6 {[%clk 0:00:15.8]} 34... Kh8 {[%clk 0:00:03.9]}
35. a5 {[%clk 0:00:13.4]} 35... Bd8 {[%clk 0:00:03.3]} 36. Rd1 {[%clk
0:00:12.7]} 36... Bf6 {[%clk 0:00:02.8]} 37. Red3 {[%clk 0:00:12]} 37... Bd4
{[%clk 0:00:02.8]} 38. b4 {[%clk 0:00:10.4]} 1-0

[Event "*** Titled Tuesday Blitz"]
[Site "Chess.com"]
[Date "2020.12.29"]
[Round "6"]
[White "norwaytoadog"]
[Black "Alekseyviktorovich"]
[Result "0-1"]
[WhiteElo "2187"]
[BlackElo "2320"]
[TimeControl "180+1"]
[EndTime "11:06:16 PST"]
[Termination "Alekseyviktorovich won on time"]

1. e4 {[%clk 0:02:59.2]} 1... e6 {[%clk 0:02:59.7]} 2. d4 {[%clk 0:02:59]} 2...
d5 {[%clk 0:02:59.7]} 3. Nc3 {[%clk 0:02:59.3]} 3... Bb4 {[%clk 0:02:58.6]} 4.
e5 {[%clk 0:02:59.7]} 4... c5 {[%clk 0:02:57.9]} 5. a3 {[%clk 0:02:59.9]} 5...
Bxc3+ {[%clk 0:02:58.1]} 6. bxc3 {[%clk 0:03:00.2]} 6... Qa5 {[%clk 0:02:58.7]}
7. Bd2 {[%clk 0:02:48.7]} 7... Qa4 {[%clk 0:02:57.9]} 8. h4 {[%clk 0:02:40.9]}
8... cxd4 {[%clk 0:02:52.9]} 9. cxd4 {[%clk 0:02:40.7]} 9... Qxd4 {[%clk
0:02:49.5]} 10. Nf3 {[%clk 0:02:40.7]} 10... Qe4+ {[%clk 0:02:40.1]} 11. Be3
{[%clk 0:02:36.7]} 11... Nc6 {[%clk 0:02:35.3]} 12. Bd3 {[%clk 0:02:36.3]} 12...
Qa4 {[%clk 0:02:24.7]} 13. h5 {[%clk 0:02:33.3]} 13... h6 {[%clk 0:02:23.7]} 14.
Rh4 {[%clk 0:02:31.6]} 14... Qa5+ {[%clk 0:02:21.7]} 15. Kf1 {[%clk 0:02:23]}
15... Nge7 {[%clk 0:02:19.7]} 16. Rg4 {[%clk 0:02:17]} 16... Kf8 {[%clk
0:02:19.3]} 17. Qe2 {[%clk 0:02:01]} 17... Qc7 {[%clk 0:02:17.5]} 18. Bc5 {[%clk
0:01:55.8]} 18... b6 {[%clk 0:02:13.5]} 19. Bd6 {[%clk 0:01:54.7]} 19... Qd7
{[%clk 0:02:13.7]} 20. Nh4 {[%clk 0:01:47]} 20... Bb7 {[%clk 0:02:11.7]} 21. c3
{[%clk 0:01:37.6]} 21... Rg8 {[%clk 0:01:39.8]} 22. Qf3 {[%clk 0:01:30.8]} 22...
f5 {[%clk 0:01:36.9]} 23. exf6 {[%clk 0:00:47.7]} 23... Qxd6 {[%clk 0:01:36.2]}
24. fxe7+ {[%clk 0:00:35.4]} 24... Kxe7 {[%clk 0:01:36.1]} 25. Re1 {[%clk
0:00:33.3]} 25... Kd7 {[%clk 0:01:33]} 26. Qf7+ {[%clk 0:00:32.1]} 26... Qe7
{[%clk 0:01:31.5]} 27. Qf4 {[%clk 0:00:24.8]} 27... Raf8 {[%clk 0:01:29.4]} 28.
Qa4 {[%clk 0:00:24.7]} 28... Kc7 {[%clk 0:01:23.1]} 29. Ng6 {[%clk 0:00:23.4]}
29... Qf6 {[%clk 0:01:19.5]} 30. Rf4 {[%clk 0:00:21.8]} 30... Qxc3 {[%clk
0:01:12]} 31. Bb5 {[%clk 0:00:17.3]} 31... Rf6 {[%clk 0:01:02.5]} 32. Rxf6
{[%clk 0:00:13.8]} 32... Qxf6 {[%clk 0:01:01.7]} 33. Rc1 {[%clk 0:00:12.6]}
33... Rc8 {[%clk 0:00:55.7]} 34. Bxc6 {[%clk 0:00:12.1]} 34... Kb8 {[%clk
0:00:55.4]} 35. Qb5 {[%clk 0:00:09.3]} 35... e5 {[%clk 0:00:50.9]} 36. Nxe5
{[%clk 0:00:08.2]} 36... Qxe5 {[%clk 0:00:47.7]} 37. Re1 {[%clk 0:00:08.6]}
37... Bxc6 {[%clk 0:00:43.6]} 38. Qb4 {[%clk 0:00:04.9]} 38... Qh2 {[%clk
0:00:26.8]} 39. a4 {[%clk 0:00:03.7]} 39... Qh1+ {[%clk 0:00:24.2]} 40. Ke2
{[%clk 0:00:04.1]} 40... Re8+ {[%clk 0:00:24.3]} 41. Kd1 {[%clk 0:00:02.3]}
41... Qxe1+ {[%clk 0:00:23.4]} 0-1